fUST/lending_fUST_20240608
["ID","MTS","AMOUNT","RATE_DAILY","PERIOD"]
[328810200,1717816643513,-456.65567516,0.00016895,2]
[328810201,1717816643536,-12239.49014681,0.00016895,2]
[328810202,1717816732193,331.0,0.00028,120]
[328810203,1717816852714,373.72,0.00010959,2]
[328810204,1717816882293,24900.0,0.00015895,2]
[328810205,1717816911673,286.60326754,0.00015895,2]
[328810206,1717816925671,287.27390121,0.00015895,2]
[328810207,1717817081031,456.65567516,9.999e-05,2]
[328810208,1717817136354,2046.67322022,0.00016895,7]
[328810209,1717817196717,1023.33661011,0.00016895,7]
[328810217,1717817251085,6179.31571146,0.00016895,7]
[328810220,1717817253325,511.66830505,0.00016895,7]
[328810221,1717817293316,198.0225132,0.00015971,2]
[328810222,1717817313398,255.83415253,0.00016895,7]
[328810225,1717817373250,3089.65785573,0.00016895,7]
[328810226,1717817373493,255.83415252,0.00016895,7]
[328810250,1717817433813,-302.0,0.00016795,2]
[328810251,1717817433826,-154.65567516,0.00016795,2]
[328810252,1717817433836,-217.3679883,0.00016796,2]
[328810253,1717817433846,-500.0,0.00016892,2]
[328810254,1717817433856,-509.88332347,0.00016892,2]
[328810255,1717817433866,-2438.9,0.00016892,2]
[328810256,1717817433876,-10874.26,0.00016892,2]
[328810257,1717817433885,-918.72,0.00016892,2]
[328810258,1717817433896,-2925.69,0.00016892,2]
[328810259,1717817433910,-2379.37,0.00016892,2]
[328810260,1717817433920,-2226.79,0.00016892,2]
[328810261,1717817433931,-1922.94,0.00016892,2]
[328810262,1717817433942,-500.0,0.00016892,2]
[328810263,1717817433951,-1873.34,0.00016892,2]
[328810264,1717817433961,-1044.49,0.00016892,2]
[328810265,1717817433971,-509.1385981,0.00016892,2]
[328810266,1717817433983,-3536.2,0.00016892,2]
[328810267,1717817433994,-823.99,0.00016892,2]
[328810268,1717817434004,-635.93,0.00016892,2]
[328810269,1717817434014,-570.36,0.00016892,2]
[328810270,1717817434024,-502.68740305,0.00016892,2]
[328810271,1717817434034,-1456.61,0.00016892,2]
[328810272,1717817434043,-8464.79035855,0.00016893,2]
[328810289,1717817440097,-377.35956123,0.00016892,2]
[328810308,1717817444081,-122.64043877,0.00016892,2]
[328810309,1717817444091,-732.16,0.00016892,2]
[328810310,1717817444102,-4629.76,0.00016892,2]
[328810311,1717817444112,-1073.17377298,0.00016893,2]
[328810352,1717817448213,-500.0,0.00016892,2]
[328810353,1717817448223,-30405.5235444,0.00016893,2]
[328810354,1717817448233,-1106.01164267,0.00016894,2]
[328810355,1717817448243,-535.37,0.00016894,2]
[328810356,1717817448253,-500.0,0.00016894,2]
[328810357,1717817448263,-2681.68,0.00016894,2]
[328810358,1717817448274,-3636.23,0.00016894,2]
[328810359,1717817448287,-504.79,0.00016894,2]
[328810360,1717817448297,-500.0,0.00016894,2]
[328810361,1717817448307,-500.0,0.00016894,2]
[328810362,1717817448317,-500.0,0.00016894,2]
[328810363,1717817448326,-628.98,0.00016894,2]
[328810364,1717817448336,-644.49,0.00016894,2]
[328810365,1717817448347,-500.0,0.00016894,2]
[328810366,1717817448358,-500.0,0.00016894,2]
[328810367,1717817448368,-5788.95,0.00016894,2]
[328810368,1717817448378,-500.0,0.00016894,2]
[328810369,1717817448389,-6216.19,0.00016894,2]
[328810370,1717817448399,-670.87,0.00016894,2]
[328810371,1717817448409,-1727.91,0.00016894,2]
[328810372,1717817448419,-500.0,0.00016894,2]
[328810373,1717817448430,-655.0,0.00016894,2]
[328810374,1717817448442,-500.0,0.00016894,2]
[328810375,1717817448452,-658.06,0.00016894,2]
[328810376,1717817448463,-971.78,0.00016894,2]
[328810377,1717817448472,-500.0,0.00016894,2]
[328810378,1717817448587,-500.0,0.00016894,2]
[328810379,1717817448598,-5260.3,0.00016894,2]
[328810380,1717817448608,-500.0,0.00016894,2]
[328810381,1717817448618,-635.93,0.00016894,2]
[328810382,1717817448627,-635.93,0.00016894,2]
[328810383,1717817448637,-635.93,0.00016894,2]
[328810384,1717817448647,-630.74,0.00016894,2]
[328810385,1717817448657,-5291.15,0.00016894,2]
[328810386,1717817448666,-2688.4,0.00016894,2]
[328810387,1717817448676,-347.7910034,0.00016894,2]
[328810388,1717817448686,-500.0,0.00016895,2]
[328810389,1717817448696,-500.0,0.00016895,2]
[328810390,1717817448705,-500.0,0.00016895,2]
[328810391,1717817448715,-151.0365052,0.00016895,2]
[328810392,1717817448724,-1717.98,0.00016895,2]
[328810393,1717817448733,-500.00577381,0.00016895,2]
[328810394,1717817448743,-493.24513889,0.00016895,2]
[328810395,1717817448752,-500.0,0.00016895,2]
[328810396,1717817448762,-500.0,0.00016895,2]
[328810397,1717817448771,-500.0,0.00016895,2]
[328810398,1717817448781,-504.08284851,0.00016895,2]
[328810399,1717817448792,-500.0,0.00016895,2]
[328810400,1717817448802,-554.82,0.00016895,2]
[328810401,1717817448811,-1192.19,0.00016895,2]
[328810402,1717817448821,-632.00298297,0.00016895,2]
[328810403,1717817448830,-500.0,0.00016895,2]
[328810404,1717817448840,-500.92945175,0.00016895,2]
[328810405,1717817448849,-500.0,0.00016895,2]
[328810406,1717817448859,-500.0,0.00016895,2]
[328810407,1717817448869,-695.33,0.00016895,2]
[328810408,1717817448878,-940.61,0.00016895,2]
[328810409,1717817448888,-758.91,0.00016895,2]
[328810410,1717817448898,-500.0,0.00016895,2]
[328810411,1717817448912,-500.0,0.00016895,2]
[328810412,1717817448921,-1497.51,0.00016895,2]
[328810413,1717817448931,-500.0,0.00016895,2]
[328810414,1717817448942,-2548.31,0.00016895,2]
[328810415,1717817448955,-500.0,0.00016895,2]
[328810416,1717817448964,-526.09293132,0.00016895,2]
[328810417,1717817448973,-500.0,0.00016895,2]
[328810418,1717817448984,-2075.18,0.00016895,2]
[328810419,1717817448994,-152.278417,0.00016895,2]
[328810420,1717817449003,-500.0,0.00016895,2]
[328810421,1717817449013,-500.0,0.00016895,2]
[328810422,1717817449025,-503.25082546,0.00016895,2]
[328810423,1717817449034,-502.36208126,0.00016895,2]
[328810424,1717817449045,-500.0,0.00016895,2]
[328810425,1717817449054,-519.55172301,0.00016895,2]
[328810426,1717817449064,-819.11,0.00016895,2]
[328810427,1717817449074,-500.0,0.00016895,2]
[328810428,1717817449084,-520.6302772,0.00016895,2]
[328810429,1717817449094,-699.71,0.00016895,2]
[328810430,1717817449104,-482.471511,0.00016895,2]
[328810431,1717817449114,-482.471511,0.00016895,2]
[328810432,1717817449123,-572.81,0.00016895,2]
[328810433,1717817449133,-500.0,0.00016895,2]
[328810434,1717817449143,-506.03208818,0.00016895,2]
[328810435,1717817449152,-175.22814,0.00016895,2]
[328810436,1717817449162,-504.33385573,0.00016895,2]
[328810437,1717817449171,-175.22814,0.00016895,2]
[328810438,1717817449181,-500.0,0.00016895,2]
[328810439,1717817449190,-3375.09,0.00016895,2]
[328810440,1717817449200,-175.22814,0.00016895,2]
[328810441,1717817449210,-175.22814,0.00016895,2]
[328810442,1717817449219,-500.0,0.00016895,2]
[328810443,1717817449229,-500.0,0.00016895,2]
[328810444,1717817449239,-1045.58,0.00016895,2]
[328810445,1717817449249,-151.0,0.00016895,2]
[328810446,1717817449260,-151.0,0.00016895,2]
[328810447,1717817449270,-577.50748122,0.00016895,2]
[328810448,1717817449281,-1455.56,0.00016895,2]
[328810449,1717817449292,-500.0,0.00016895,2]
[328810450,1717817449302,-697.31277339,0.00016895,2]
[328810451,1717817555639,21765.07397867,0.00015869,2]
[328810452,1717817613942,1544.82892787,0.00016895,7]
[328810454,1717817734396,772.41446393,0.00016894,7]
[328810455,1717817853500,386.20723197,0.00016892,7]
[328810456,1717817866124,456.65567516,9.999e-05,2]
[328810458,1717817974630,193.10361598,0.00016892,7]
[328810459,1717818094073,193.10361598,0.00016892,7]
[328810460,1717818352323,456.65567516,9.999e-05,2]
[328810461,1717818415104,443.60484974,0.00012666,2]
[328810463,1717818551702,2681.67820183,9.999e-05,2]
[328810474,1717818632881,-456.65567516,0.00015638,2]
[328810477,1717818632891,-10539.6485585,0.00015639,2]
[328810478,1717818632901,-24900.0,0.0001564,2]
[328810480,1717818632912,-1022.04415348,0.00015686,2]
[328810481,1717818632923,-566.2255995,0.00015786,2]
[328810482,1717818632935,-4237.72657179,0.00016495,2]
[328810483,1717818632945,-500.0,0.0001652,2]
[328810484,1717818632955,-2337.28,0.0001652,2]
[328810485,1717818632965,-10421.17,0.0001652,2]
[328810486,1717818632975,-880.44,0.0001652,2]
[328810487,1717818632986,-2803.79,0.0001652,2]
[328810488,1717818632996,-2280.23,0.0001652,2]
[328810489,1717818633006,-1244.83,0.0001652,2]
[328810490,1717818633016,-171.26340288,0.0001652,2]
[328810491,1717818633025,-1842.82,0.0001652,2]
[328810492,1717818633035,-1795.29,0.0001652,2]
[328810493,1717818633044,-1000.97,0.0001652,2]
[328810494,1717818633054,-3388.86,0.0001652,2]
[328810495,1717818633064,-529.94,0.0001652,2]
[328810496,1717818633073,-1395.92,0.0001652,2]
[328810497,1717818633083,-500.0,0.00016623,2]
[328810498,1717818633093,-5380.61031317,0.00016624,2]
[328810499,1717818633103,-205.1978842,0.000167,2]
[328810500,1717818633113,-312.79756473,0.0001679,2]
[328810501,1717818633123,-500.0,0.00016794,2]
[328810502,1717818633133,-2337.28,0.00016794,2]
[328810503,1717818633142,-10421.17,0.00016794,2]
[328810504,1717818633152,-880.44,0.00016794,2]
[328810505,1717818633163,-2803.79,0.00016794,2]
[328810506,1717818633173,-1671.55014219,0.00016794,2]
[328810551,1717818644102,-513.06,0.0001652,2]
[328810553,1717818644112,-4109.03297749,0.0001652,2]
[328810555,1717818644125,-327.81702251,0.0001652,2]
[328810556,1717818644135,-546.59,0.00016623,2]
[328810557,1717818644146,-500.0,0.00016623,2]
[328810558,1717818644156,-608.67985781,0.00016794,2]
[328810559,1717818644166,-1244.83,0.00016794,2]
[328810560,1717818644176,-1842.82,0.00016794,2]
[328810561,1717818644186,-1795.29,0.00016794,2]
[328810562,1717818644196,-1000.97,0.00016794,2]
[328810563,1717818644205,-2520.58632306,0.00016794,2]
[328810569,1717818647145,-854.60441599,0.00016794,2]
[328810570,1717818654016,276.61,0.00010959,2]
[328810571,1717818664515,230.51,0.00010959,2]
[328810572,1717818675268,192.09,0.00010959,2]
[328810573,1717818685817,160.08,0.00010959,2]
[328810574,1717818696346,800.4,0.00010959,2]
[328810575,1717818723905,10000.0,0.00025,60]
[328810576,1717818726594,154.9690062,9.999e-05,2]
[328810577,1717818737533,157.69330776,9.999e-05,2]
[328810578,1717819126115,456.65567516,9.999e-05,2]
[328810611,1717819399832,24900.0,0.00014866,2]
[328810626,1717819561310,456.65567516,9.999e-05,2]
[328810628,1717819641717,1308.37420779,9.999e-05,2]
[328810641,1717819672404,210.16407591,9.999e-05,2]
[328810642,1717819673574,2094.82592376,9.999e-05,2]
[328810643,1717819691673,531.33765339,9.999e-05,2]
[328810644,1717819693578,500.0,0.00023,30]
[328810645,1717819703659,16322.33978355,9.999e-05,2]
[328810646,1717819706714,2120.78795368,9.999e-05,2]
[328810745,1717819832538,-456.65567516,0.00015608,2]
[328810747,1717819832548,-894.28863433,0.00015609,2]
[328810749,1717819832557,-677.95521816,0.00015706,2]
[328810751,1717819832570,-910.36933831,0.00015706,2]
[328810753,1717819832580,-277.90931432,0.00015707,2]
[328810755,1717819832590,-1285.18809558,0.00015707,2]
[328810757,1717819832600,-228.37504674,0.00015708,2]
[328810759,1717819832610,-1227.55099524,0.00015708,2]
[328810762,1717819832622,-1079.73940947,0.00015708,2]
[328810783,1717819832754,-500.0,0.00015708,2]
[328810786,1717819832766,-516.20767634,0.00015708,2]
[328810790,1717819832777,-310.0,0.00015708,2]
[328810793,1717819832789,-2048.81293769,0.00015708,2]
[328811002,1717819838326,-1570.92564338,0.00015708,2]
[328811003,1717819838468,-17247.74036742,0.00015708,2]
[328811004,1717819838479,-4564.68082416,0.00015708,2]
[328811005,1717819838599,-10911.28820264,0.00015708,2]
[328811006,1717819838611,-2286.57430576,0.00015708,2]
[328811007,1717819838624,-2270.82460819,0.00015708,2]
[328811155,1717819842052,-4569.41979638,0.00015708,2]
[328811158,1717819842069,-1313.50524162,0.00015709,2]
[328811282,1717819846617,-3278.93979923,0.00015708,2]
[328811283,1717819846632,-456.65567516,0.00015708,2]
[328811284,1717819846645,-50959.04315806,0.00015709,2]
[328811285,1717819846658,-250.23805176,0.00016338,2]
[328811286,1717819846673,-250.23805175,0.00016407,2]
[328811287,1717819846686,-15408.92920048,0.00016436,2]
[328811288,1717819846698,-789.66,0.00016438,2]
[328811289,1717819846711,-523.82,0.00016438,2]
[328811290,1717819846723,-500.0,0.00016438,2]
[328811291,1717819846736,-503.33744428,0.00016438,2]
[328811292,1717819846750,-500.0,0.00016438,2]
[328811293,1717819846762,-508.03335872,0.00016438,2]
[328811294,1717819846774,-503.83827899,0.00016438,2]
[328811295,1717819846787,-500.0,0.00016438,2]
[328811296,1717819846800,-500.0,0.00016438,2]
[328811297,1717819846927,-1646.4,0.00016438,2]
[328811298,1717819846991,-500.0,0.00016438,2]
[328811299,1717819847001,-500.0,0.00016438,2]
[328811300,1717819847011,-1631.15,0.00016438,2]
[328811301,1717819847021,-501.92661317,0.00016438,2]
[328811302,1717819847032,-514.25974563,0.00016438,2]
[328811303,1717819847042,-506.60653388,0.00016438,2]
[328811304,1717819847051,-500.0,0.00016438,2]
[328811305,1717819847060,-1142.52,0.00016438,2]
[328811306,1717819847070,-500.0,0.00016438,2]
[328811307,1717819847080,-500.0,0.00016438,2]
[328811308,1717819847092,-500.0,0.00016438,2]
[328811309,1717819847103,-835.27,0.00016438,2]
[328811310,1717819847113,-531.7,0.00016438,2]
[328811311,1717819847123,-500.0,0.00016438,2]
[328811312,1717819847132,-500.0,0.00016438,2]
[328811313,1717819847141,-500.0,0.00016438,2]
[328811314,1717819847152,-666.44,0.00016438,2]
[328811315,1717819847163,-1107.9,0.00016438,2]
[328811316,1717819847174,-500.0,0.00016438,2]
[328811317,1717819847183,-500.0,0.00016438,2]
[328811318,1717819847193,-504.43715506,0.00016438,2]
[328811319,1717819847203,-500.0,0.00016438,2]
[328811320,1717819847213,-500.0,0.00016438,2]
[328811321,1717819847222,-500.0,0.00016438,2]
[328811322,1717819847233,-500.0,0.00016438,2]
[328811323,1717819847244,-500.0,0.00016438,2]
[328811324,1717819847254,-500.0,0.00016438,2]
[328811325,1717819847263,-500.0,0.00016438,2]
[328811326,1717819847273,-727.29,0.00016438,2]
[328811327,1717819847283,-500.0,0.00016438,2]
[328811328,1717819847292,-500.0,0.00016438,2]
[328811329,1717819847302,-500.0,0.00016438,2]
[328811330,1717819847312,-555.57,0.00016438,2]
[328811331,1717819847321,-500.0,0.00016438,2]
[328811332,1717819847331,-500.0,0.00016438,2]
[328811333,1717819847341,-502.12779742,0.00016438,2]
[328811334,1717819847350,-500.0,0.00016438,2]
[328811335,1717819847359,-1435.11,0.00016438,2]
[328811336,1717819847369,-500.0,0.00016438,2]
[328811337,1717819847380,-2442.13,0.00016438,2]
[328811338,1717819847389,-640.93,0.00016438,2]
[328811339,1717819847398,-514.57639973,0.00016438,2]
[328811340,1717819847407,-500.0,0.00016438,2]
[328811341,1717819847417,-19.11295944,0.00016438,2]
[328811343,1717819940092,575.89850232,0.00014,2]
[328811389,1717820412501,2681.67820183,9.999e-05,2]
[328811390,1717820611386,24900.0,0.00014863,2]
[328811433,1717821032959,-2768.7851415,0.00015211,2]
[328811435,1717821032968,-4123.7047093,0.00015382,2]
[328811437,1717821032978,-9269.46659088,0.00015437,2]
[328811439,1717821032988,-4237.72657179,0.00016326,2]
[328811441,1717821032998,-150.14283105,0.00016338,2]
[328811443,1717821033008,-385.8438884,0.000164,2]
[328811445,1717821033022,-155.941554,0.000164,2]
[328811447,1717821033032,-150.14283105,0.00016407,2]
[328811449,1717821033041,-235.77807413,0.00016436,2]
[328811451,1717821033051,-1424.24668277,0.00016436,2]
[328811452,1717821033062,-177.78637968,0.00016436,2]
[328811454,1717821033072,-1454.20196969,0.00016436,2]
[328811456,1717821033081,-5530.3822331,0.00016437,2]
[328811491,1717821033416,-289.11994635,0.00016437,2]
[328811588,1717821038834,-1480.74942289,0.00016437,2]
[328811600,1717821042988,-252.92464018,0.00016437,2]
[328811601,1717821043062,-384.91545218,0.00016437,2]
[328811602,1717821043071,-153.878345,0.00016438,2]
[328811603,1717821043081,-872.62,0.00016438,2]
[328811604,1717821043092,-501.2387798,0.00016438,2]
[328811605,1717821043102,-500.0,0.00016438,2]
[328811606,1717821043112,-479.46454415,0.00016438,2]
[328811607,1717821043121,-500.0,0.00016438,2]
[328811608,1717821043131,-500.0,0.00016438,2]
[328811609,1717821043140,-1563.18,0.00016438,2]
[328811610,1717821043150,-503.39857003,0.00016438,2]
[328811611,1717821043159,-500.0,0.00016438,2]
[328811613,1717821043169,-500.0,0.00016438,2]
[328811615,1717821043178,-455.19573723,0.00016438,2]
[328811616,1717821043191,-44.80426277,0.00016438,2]
[328811617,1717821043202,-500.0,0.00016438,2]
[328811618,1717821043211,-502.08077373,0.00016438,2]
[328811619,1717821043220,-500.0,0.00016438,2]
[328811620,1717821043230,-800.47,0.00016438,2]
[328811621,1717821043240,-504.91926749,0.00016438,2]
[328811622,1717821043249,-500.0,0.00016438,2]
[328811623,1717821043258,-506.43853628,0.00016438,2]
[328811624,1717821043268,-1061.74,0.00016438,2]
[328811625,1717821043278,-500.0,0.00016438,2]
[328811626,1717821043287,-500.0,0.00016438,2]
[328811627,1717821043296,-500.0,0.00016438,2]
[328811628,1717821043305,-500.0,0.00016438,2]
[328811629,1717821043315,-500.0,0.00016438,2]
[328811630,1717821043324,-503.65155996,0.00016438,2]
[328811631,1717821043333,-500.0,0.00016438,2]
[328811632,1717821043343,-527.52614591,0.00016438,2]
[328811633,1717821043352,-532.42,0.00016438,2]
[328811634,1717821043361,-503.15679101,0.00016438,2]
[328811635,1717821043371,-614.22,0.00016438,2]
[328811636,1717821043380,-502.72867173,0.00016438,2]
[328811638,1717821043389,-502.76342707,0.00016438,2]
[328811639,1717821043399,-500.0,0.00016438,2]
[328811640,1717821043408,-520.58573128,0.00016438,2]
[328811641,1717821043418,-500.0,0.00016438,2]
[328811642,1717821043427,-520.90310394,0.00016438,2]
[328811643,1717821043536,-505.62915926,0.00016438,2]
[328811644,1717821043547,-502.02907705,0.00016438,2]
[328811645,1717821043556,-698.58,0.00016438,2]
[328811646,1717821043566,-500.0,0.00016438,2]
[328811647,1717821043575,-761.22,0.00016438,2]
[328811648,1717821043584,-500.0,0.00016438,2]
[328811649,1717821043594,-501.70574773,0.00016438,2]
[328811650,1717821043604,-501.24596245,0.00016438,2]
[328811651,1717821043613,-519.50344942,0.00016438,2]
[328811652,1717821043622,-500.0,0.00016438,2]
[328811654,1717821043632,-508.66276085,0.00016438,2]
[328811655,1717821043642,-500.0,0.00016438,2]
[328811656,1717821043651,-500.0,0.00016438,2]
[328811657,1717821043660,-500.0,0.00016438,2]
[328811658,1717821043669,-500.0,0.00016438,2]
[328811659,1717821043679,-500.0,0.00016438,2]
[328811660,1717821043689,-500.0,0.00016438,2]
[328811662,1717821043700,-2658.92,0.00016438,2]
[328811663,1717821043709,-500.0,0.00016438,2]
[328811664,1717821043718,-500.0,0.00016438,2]
[328811665,1717821043729,-501.70200061,0.00016438,2]
[328811666,1717821043738,-500.0,0.00016438,2]
[328811667,1717821043747,-506.91581617,0.00016438,2]
[328811668,1717821043757,-500.0,0.00016438,2]
[328811670,1717821043767,-104.65622317,0.00016438,2]
[328811686,1717821047156,-395.34377683,0.00016438,2]
[328811687,1717821047170,-680.82,0.00016438,2]
[328811688,1717821047181,-500.0,0.00016438,2]
[328811689,1717821047194,-500.0,0.00016438,2]
[328811690,1717821047209,-183.10138043,0.00016438,2]
[328811736,1717822232093,-936.65315488,0.00015626,2]
[328811737,1717822232103,-4237.72657179,0.00016275,2]
[328811738,1717822232114,-272.73490412,0.00016338,2]
[328811739,1717822232123,-899.23871429,0.00016338,2]
[328811740,1717822232133,-2000.0,0.00016338,2]
[328811741,1717822232143,-272.7349041,0.00016407,2]
[328811742,1717822232153,-635.83265774,0.00016407,2]
[328811743,1717822232162,-8464.79035855,0.00016436,2]
[328811744,1717822232172,-184.95568939,0.00016436,2]
[328811745,1717822232182,-6778.78652038,0.00016437,2]
[328811746,1717822232193,-500.0,0.00016438,2]
[328811747,1717822232202,-500.0,0.00016438,2]
[328811749,1717822232212,-500.0,0.00016438,2]
[328811751,1717822232222,-500.0,0.00016438,2]
[328811753,1717822232233,-329.46252011,0.00016438,2]
[328811755,1717822232242,-500.0,0.00016438,2]
[328811757,1717822232252,-500.0,0.00016438,2]
[328811759,1717822232262,-500.0,0.00016438,2]
[328811761,1717822232271,-501.47830249,0.00016438,2]
[328811763,1717822232282,-500.0,0.00016438,2]
[328811765,1717822232292,-500.0,0.00016438,2]
[328811767,1717822232301,-500.0,0.00016438,2]
[328811769,1717822232311,-500.0,0.00016438,2]
[328811770,1717822232321,-445.18548997,0.00016438,2]
[328811771,1717822232331,-500.0,0.00016438,2]
[328811772,1717822232340,-500.0,0.00016438,2]
[328811773,1717822232350,-500.0,0.00016438,2]
[328811774,1717822232359,-203.16760027,0.00016438,2]
[328811775,1717822232368,-500.0,0.00016438,2]
[328811776,1717822232378,-500.0,0.00016438,2]
[328811777,1717822232388,-500.0,0.00016438,2]
[328811778,1717822232398,-500.0,0.00016438,2]
[328811779,1717822232407,-500.0,0.00016438,2]
[328811780,1717822232417,-500.5877006,0.00016438,2]
[328811781,1717822232426,-500.0,0.00016438,2]
[328811782,1717822232436,-513.31193742,0.00016438,2]
[328811783,1717822232446,-500.0,0.00016438,2]
[328811784,1717822232455,-500.0,0.00016438,2]
[328811785,1717822232465,-500.0,0.00016438,2]
[328811786,1717822232475,-501.63231286,0.00016438,2]
[328811787,1717822232484,-500.0,0.00016438,2]
[328811788,1717822232494,-500.0,0.00016438,2]
[328811789,1717822232503,-328.31265088,0.00016438,2]
[328811790,1717822232513,-500.0,0.00016438,2]
[328811791,1717822232522,-500.0,0.00016438,2]
[328811792,1717822232531,-500.0,0.00016438,2]
[328811793,1717822232541,-458.43409706,0.00016438,2]
[328811794,1717822232550,-500.0,0.00016438,2]
[328811795,1717822232559,-500.0,0.00016438,2]
[328811796,1717822232569,-500.0,0.00016438,2]
[328811797,1717822232579,-500.0,0.00016438,2]
[328811798,1717822232588,-500.0,0.00016438,2]
[328811799,1717822232598,-839.2,0.00016438,2]
[328811800,1717822232607,-500.0,0.00016438,2]
[328811801,1717822232617,-500.0,0.00016438,2]
[328811802,1717822232626,-279.45513395,0.00016438,2]
[328811803,1717822232645,-220.54486605,0.00016438,2]
[328811804,1717822232659,-500.0,0.00016438,2]
[328811805,1717822232669,-192.70116132,0.00016438,2]
[328811829,1717822238197,-307.29883868,0.00016438,2]
[328811830,1717822238208,-500.0,0.00016438,2]
[328811831,1717822238218,-500.65293141,0.00016438,2]
[328811832,1717822238227,-388.9031087,0.00016438,2]
[328811833,1717822238241,-111.0968913,0.00016438,2]
[328811835,1717822238251,-456.64648975,0.00016438,2]
[328811836,1717822238260,-739.65,0.00016438,2]
[328811837,1717822238270,-503.01179036,0.00016438,2]
[328811838,1717822238280,-504.14826699,0.00016438,2]
[328811839,1717822238289,-500.0,0.00016438,2]
[328811840,1717822238298,-500.0,0.00016438,2]
[328811841,1717822238307,-500.0,0.00016438,2]
[328811842,1717822238316,-294.60984502,0.00016438,2]
[328811850,1717822241847,-205.39015498,0.00016438,2]
[328811851,1717822241857,-99.32352746,0.00016438,2]
[328811854,1717822243354,-413.65559301,0.00016438,2]
[328811855,1717822243364,-500.0,0.00016438,2]
[328811856,1717822243374,-544.05921063,0.00016438,2]
[328811857,1717822243384,-275.37410684,0.00016438,2]
[328811858,1717822243393,-500.0,0.00016438,2]
[328811859,1717822243402,-500.0,0.00016438,2]
[328811860,1717822243412,-500.0,0.00016438,2]
[328811861,1717822243421,-500.0,0.00016438,2]
[328811862,1717822243431,-500.0,0.00016438,2]
[328811863,1717822243440,-500.0,0.00016438,2]
[328811864,1717822243449,-500.0,0.00016438,2]
[328811865,1717822243460,-366.26529457,0.00016438,2]
[328811866,1717822243469,-502.02985793,0.00016438,2]
[328811867,1717822243479,-502.48724867,0.00016438,2]
[328811868,1717822243488,-501.09940121,0.00016438,2]
[328811869,1717822243498,-500.0,0.00016438,2]
[328811870,1717822243507,-502.89657604,0.00016438,2]
[328811871,1717822243517,-500.0,0.00016438,2]
[328811872,1717822243526,-491.47236786,0.00016438,2]
[328811873,1717822243535,-500.0,0.00016438,2]
[328811874,1717822243544,-500.0,0.00016438,2]
[328811875,1717822243554,-512.50873422,0.00016438,2]
[328811876,1717822243563,-431.10957028,0.00016438,2]
[328811877,1717822243573,-500.0,0.00016438,2]
[328811878,1717822243582,-500.0,0.00016438,2]
[328811879,1717822243592,-500.0,0.00016438,2]
[328811880,1717822243602,-500.0,0.00016438,2]
[328811881,1717822243611,-500.0,0.00016438,2]
[328811882,1717822243620,-500.0,0.00016438,2]
[328811883,1717822243629,-500.0,0.00016438,2]
[328811884,1717822243638,-500.0,0.00016438,2]
[328811885,1717822243648,-500.0,0.00016438,2]
[328811886,1717822243661,-500.0,0.00016438,2]
[328811887,1717822243670,-500.0,0.00016438,2]
[328811888,1717822243680,-500.0,0.00016438,2]
[328811889,1717822243689,-500.0,0.00016438,2]
[328811890,1717822243698,-500.0,0.00016438,2]
[328811891,1717822243707,-501.62834679,0.00016438,2]
[328811892,1717822243717,-500.0,0.00016438,2]
[328811893,1717822243727,-442.23557296,0.00016438,2]
[328811894,1717822243737,-501.30195198,0.00016438,2]
[328811895,1717822243748,-559.46,0.00016438,2]
[328811896,1717822243758,-500.0,0.00016438,2]
[328811897,1717822243767,-500.0,0.00016438,2]